fUSD/lending_fUSD_20240727
["ID","MTS","AMOUNT","RATE_DAILY","PERIOD"]
[333396303,1722103832147,-2056.97,9.973e-05,2]
[333396304,1722103832156,-2056.97,9.976e-05,2]
[333396305,1722103832168,-2056.97,9.979e-05,2]
[333396306,1722103832178,-2056.97,9.981e-05,2]
[333396307,1722103832187,-317.43421063,9.984e-05,2]
[333396308,1722103832198,-630.10225962,9.984e-05,2]
[333396310,1722103832209,-1109.43352975,9.984e-05,2]
[333396311,1722103832218,-508.64281014,9.986e-05,2]
[333396312,1722103832230,-792.5901174,9.986e-05,2]
[333396313,1722103832242,-755.73707246,9.986e-05,2]
[333396314,1722103832252,-399.12666437,9.989e-05,2]
[333396315,1722103832279,-1657.84333563,9.989e-05,2]
[333396316,1722103832291,-1727.30666437,9.992e-05,2]
[333396317,1722103832322,-329.66333563,9.992e-05,2]
[333396318,1722103832331,-142.87249942,9.994e-05,2]
[333396319,1722103832343,-539.14833749,9.994e-05,2]
[333396320,1722103832365,-340.78735789,9.994e-05,2]
[333396326,1722103837787,-1034.1618052,9.994e-05,2]
[333396327,1722103837797,-2056.97,9.997e-05,2]
[333396328,1722103837806,-562.07806846,0.0001,2]
[333396329,1722103837817,-1494.89193154,0.0001,2]
[333396330,1722103837826,-1250.0,0.0001,2]
[333396331,1722103837836,-2056.97,0.00010002,2]
[333396332,1722103837846,-1000.0,0.00010015,2]
[333396333,1722103837855,-420.0,0.00010082,2]
[333396334,1722103837864,-420.0,0.00010082,2]
[333396335,1722103837874,-150.0,0.00010278,2]
[333396336,1722103837884,-1093.4,0.00010278,2]
[333396337,1722103837893,-150.0,0.00010278,2]
[333396338,1722103837902,-232.92,0.00010278,2]
[333396339,1722103837912,-150.0,0.00010278,2]
[333396340,1722103837922,-358.67,0.00010278,2]
[333396341,1722103837931,-425.65,0.00010278,2]
[333396342,1722103837940,-338.22,0.00010278,2]
[333396343,1722103837950,-150.0,0.00010278,2]
[333396344,1722103837959,-425.65,0.00010278,2]
[333396345,1722103837968,-425.65,0.00010278,2]
[333396346,1722103837978,-150.0,0.00010278,2]
[333396347,1722103837987,-424.99,0.00010278,2]
[333396348,1722103837997,-896.83,0.00010444,2]
[333396349,1722103838006,-2500.0,0.000108,2]
[333396350,1722103838015,-152.0,0.00010803,3]
[333396351,1722103838025,-3000.0,0.0001089,2]
[333396352,1722103838034,-2252.50926619,0.00010898,2]
[333396353,1722103838046,-321.1693975,0.00010898,2]
[333396354,1722103838057,-541.90799385,0.00010898,2]
[333396355,1722103838068,-1731.09387748,0.00010898,2]
[333396356,1722103838080,-2653.31946498,0.00010898,2]
[333396357,1722103838090,-158.2672948,0.00010899,2]
[333396358,1722103838099,-158.26729478,0.00010899,2]
[333396359,1722103838109,-158.26729478,0.00010899,2]
[333396360,1722103838118,-158.26729478,0.00010899,2]
[333396362,1722103838128,-158.26729478,0.00010899,2]
[333396363,1722103838137,-158.26729478,0.00010899,2]
[333396365,1722103838148,-158.26729478,0.00010899,2]
[333396367,1722103838157,-158.26729478,0.00010899,2]
[333396370,1722103838169,-158.26729478,0.00010899,2]
[333396371,1722103838178,-3540.6494,0.000109,2]
[333396373,1722103838187,-12233.20851948,0.000109,2]
[333396374,1722103838230,-443.81585153,0.000109,2]
[333396375,1722103838250,-381.33465368,0.000109,2]
[333396376,1722103838262,-994.53623725,0.000109,2]
[333396377,1722103838279,-2192.4951309,0.000109,2]
[333396378,1722103838302,-10606.89130716,0.000109,2]
[333396379,1722103838314,-7929.806,0.000109,2]
[333396380,1722103838324,-500.0,0.000109,2]
[333396381,1722103838333,-468.3864,0.000109,2]
[333396382,1722103838343,-306.17,0.000109,2]
[333396383,1722103838353,-174.46635943,0.000109,2]
[333396384,1722103838362,-160.44485384,0.000109,2]
[333396385,1722103838372,-158.26729478,0.000109,2]
[333396386,1722103838381,-182.42849114,0.000109,2]
[333396387,1722103838390,-176.96034438,0.000109,2]
[333396388,1722103838399,-1017.6132676,0.000109,2]
[333396389,1722103838408,-500.0,0.00010911,2]
[333396390,1722103838419,-500.0,0.00010912,2]
[333396391,1722103838428,-500.0,0.00010959,2]
[333396392,1722103838438,-3235.78,0.00010959,2]
[333396393,1722103838447,-250.0,0.00010959,2]
[333396394,1722103838456,-150.0,0.00010959,2]
[333396395,1722103838466,-165.64,0.00010976,2]
[333396396,1722103838475,-8467.89327967,0.0001099,2]
[333396397,1722103838505,-1705.16722965,0.0001099,2]
[333396398,1722103838515,-840.03344257,0.00010994,2]
[333396399,1722103838525,-1000.0,0.00010997,2]
[333396400,1722103838534,-500.0,0.00010998,2]
[333396401,1722103838543,-500.0,0.00010998,2]
[333396402,1722103838554,-500.0,0.00010998,2]
[333396403,1722103838564,-500.0,0.00010998,2]
[333396404,1722103838573,-500.0,0.00010998,2]
[333396405,1722103838582,-500.0,0.00010998,2]
[333396406,1722103838591,-500.0,0.00010998,2]
[333396407,1722103838601,-500.0,0.00010998,2]
[333396408,1722103838610,-500.0,0.00010998,2]
[333396409,1722103838619,-500.0,0.00010998,2]
[333396410,1722103838628,-500.0,0.00010998,2]
[333396411,1722103838637,-500.0,0.00010998,2]
[333396412,1722103838647,-500.0,0.00010998,2]
[333396413,1722103838656,-500.0,0.00010998,2]
[333396414,1722103838670,-500.0,0.00010998,2]
[333396415,1722103838679,-500.0,0.00010998,2]
[333396416,1722103838688,-500.0,0.00010998,2]
[333396417,1722103838698,-500.0,0.00010998,2]
[333396418,1722103838707,-500.0,0.00010998,2]
[333396419,1722103838716,-500.0,0.00010998,2]
[333396420,1722103838726,-500.0,0.00010998,2]
[333396421,1722103838735,-352.20008364,0.00010998,2]
[333396422,1722103838747,-500.0,0.00010998,2]
[333396423,1722103838758,-500.0,0.00010998,2]
[333396424,1722103838769,-500.0,0.00010998,2]
[333396425,1722103838779,-500.0,0.00010998,2]
[333396426,1722103838789,-500.0,0.00010998,2]
[333396427,1722103838799,-500.0,0.00010998,2]
[333396428,1722103838810,-500.0,0.00010998,2]
[333396429,1722103838820,-500.0,0.00010998,2]
[333396430,1722103838829,-500.0,0.00010998,2]
[333396431,1722103838838,-500.0,0.00010998,2]
[333396432,1722103838847,-500.0,0.00010998,2]
[333396433,1722103838857,-630.18,0.00010998,2]
[333396434,1722103838867,-500.0,0.00010998,2]
[333396435,1722103838875,-500.0,0.00010998,2]
[333396436,1722103838885,-500.0,0.00010998,2]
[333396437,1722103838894,-183.83677638,0.00010998,2]
[333396438,1722103838903,-500.0,0.00010998,2]
[333396439,1722103838913,-500.0,0.00010998,2]
[333396440,1722103838923,-500.0,0.00010998,2]
[333396441,1722103838932,-158.89,0.00010998,2]
[333396442,1722103838942,-500.0,0.00010998,2]
[333396443,1722103838951,-500.0,0.00010998,2]
[333396444,1722103838960,-500.0,0.00010998,2]
[333396445,1722103838969,-420.23475037,0.00010998,2]
[333396446,1722103838979,-529.75967719,0.00010998,2]
[333396447,1722103838989,-500.0,0.00010998,2]
[333396448,1722103838998,-500.0,0.00010998,2]
[333396449,1722103839008,-500.0,0.00010998,2]
[333396450,1722103839017,-500.0,0.00010998,2]
[333396451,1722103839027,-500.0,0.00010998,2]
[333396452,1722103839037,-500.0,0.00010998,2]
[333396453,1722103839046,-500.0,0.00010998,2]
[333396454,1722103839056,-371.18854482,0.00010998,2]
[333396455,1722103839071,-128.81145518,0.00010998,2]
[333396456,1722103839080,-500.0,0.00010998,2]
[333396457,1722103839089,-500.0,0.00010998,2]
[333396458,1722103839098,-500.0,0.00010998,2]
[333396459,1722103839107,-500.0,0.00010998,2]
[333396460,1722103839116,-500.0,0.00010998,2]
[333396461,1722103839126,-500.0,0.00010998,2]
[333396462,1722103839135,-500.0,0.00010998,2]
[333396463,1722103839144,-500.0,0.00010998,2]
[333396464,1722103839154,-500.0,0.00010998,2]
[333396465,1722103839163,-500.0,0.00010998,2]
[333396466,1722103839173,-500.0,0.00010998,2]
[333396467,1722103839182,-500.0,0.00010998,2]
[333396468,1722103839191,-500.0,0.00010998,2]
[333396469,1722103839200,-500.0,0.00010998,2]
[333396470,1722103839209,-500.0,0.00010998,2]
[333396471,1722103839218,-500.0,0.00010998,2]
[333396473,1722103839228,-500.0,0.00010998,2]
[333396475,1722103839237,-500.0,0.00010998,2]
[333396476,1722103839246,-500.0,0.00010998,2]
[333396478,1722103839255,-500.0,0.00010998,2]
[333396480,1722103839266,-152.12,0.00010998,2]
[333396482,1722103839277,-553.92,0.00010998,2]
[333396484,1722103839286,-500.0,0.00010998,2]
[333396486,1722103839296,-500.0,0.00010998,2]
[333396488,1722103839306,-500.0,0.00010998,2]
[333396489,1722103839315,-500.0,0.00010998,2]
[333396490,1722103839326,-500.0,0.00010998,2]
[333396491,1722103839336,-500.0,0.00010998,2]
[333396492,1722103839346,-500.0,0.00010998,2]
[333396493,1722103839355,-500.0,0.00010998,2]
[333396494,1722103839365,-500.0,0.00010998,2]
[333396495,1722103839375,-338.77,0.00010998,2]
[333396496,1722103839385,-500.0,0.00010998,2]
[333396497,1722103839396,-500.0,0.00010998,2]
[333396498,1722103839406,-500.0,0.00010998,2]
[333396499,1722103839416,-500.0,0.00010998,2]
[333396500,1722103839426,-500.0,0.00010998,2]
[333396501,1722103839435,-257.88626351,0.00010998,2]
[333396502,1722103839445,-500.0,0.00010998,2]
[333396503,1722103839455,-500.0,0.00010998,2]
[333396504,1722103839466,-500.0,0.00010998,2]
[333396505,1722103839475,-500.0,0.00010998,2]
[333396506,1722103839486,-500.0,0.00010998,2]
[333396507,1722103839496,-500.0,0.00010998,2]
[333396508,1722103839507,-500.0,0.00010998,2]
[333396509,1722103839517,-500.0,0.00010998,2]
[333396510,1722103839527,-500.0,0.00010998,2]
[333396511,1722103839535,-500.0,0.00010998,2]
[333396512,1722103839546,-500.0,0.00010998,2]
[333396513,1722103839556,-500.0,0.00010998,2]
[333396514,1722103839566,-500.0,0.00010998,2]
[333396515,1722103839575,-500.0,0.00010998,2]
[333396516,1722103839585,-500.0,0.00010998,2]
[333396517,1722103839596,-500.0,0.00010998,2]
[333396518,1722103839606,-500.0,0.00010998,2]
[333396519,1722103839616,-500.0,0.00010998,2]
[333396520,1722103839625,-500.0,0.00010998,2]
[333396521,1722103839635,-500.0,0.00010998,2]
[333396522,1722103839645,-500.0,0.00010998,2]
[333396523,1722103839654,-500.0,0.00010998,2]
[333396526,1722103839668,-500.0,0.00010998,2]
[333396529,1722103839677,-500.0,0.00010998,2]
[333396530,1722103839687,-500.0,0.00010998,2]
[333396531,1722103839696,-500.0,0.00010998,2]
[333396532,1722103839707,-500.0,0.00010998,2]
[333396533,1722103839718,-239.69106678,0.00010998,2]
[333396534,1722103839728,-500.0,0.00010998,2]
[333396535,1722103839741,-500.0,0.00010998,2]
[333396536,1722103839751,-628.23561068,0.00010998,2]
[333396537,1722103839761,-500.0,0.00010998,2]
[333396538,1722103839771,-500.0,0.00010998,2]
[333396539,1722103839783,-500.0,0.00010998,2]
[333396540,1722103839793,-500.0,0.00010999,2]
[333396541,1722103839802,-306.27363285,0.00010999,2]
[333396542,1722103839814,-500.0,0.00010999,2]
[333396543,1722103839824,-500.0,0.00010999,2]
[333396544,1722103839835,-500.0,0.00010999,2]
[333396545,1722103839844,-74.82365541,0.00010999,2]
[333396546,1722103839856,-425.17634459,0.00010999,2]
[333396547,1722103839865,-272.04587768,0.00010999,2]
[333396548,1722103839898,-227.95412232,0.00010999,2]
[333396549,1722103839908,-408.49,0.00010999,2]
[333396550,1722103839919,-7.66229177,0.00010999,2]
[333396551,1722103839931,-492.33770823,0.00010999,2]
[333396552,1722103839940,-500.0,0.00010999,2]
[333396553,1722103839950,-447.4313202,0.00010999,2]
[333396554,1722103839959,-526.61,0.00010999,2]
[333396555,1722103839968,-464.1563951,0.00010999,2]
[333396556,1722103839979,-35.8436049,0.00010999,2]
[333396557,1722103839989,-500.0,0.00010999,2]
[333396558,1722103839998,-584.69,0.00010999,2]
[333396559,1722103840008,-276.15685514,0.00010999,2]
[333396560,1722103840019,-223.84314486,0.00010999,2]
[333396561,1722103840028,-500.0,0.00010999,2]
[333396562,1722103840037,-167.67098165,0.00010999,2]
[333396563,1722103840049,-332.32901835,0.00010999,2]
[333396564,1722103840058,-197.69,0.00010999,2]
[333396565,1722103840067,-500.0,0.00010999,2]
[333396566,1722103840076,-500.0,0.00010999,2]
[333396567,1722103840085,-500.0,0.00010999,2]
[333396569,1722103840094,-500.0,0.00010999,2]
[333396570,1722103840103,-500.0,0.00010999,2]
[333396572,1722103840112,-164.71,0.00010999,2]
[333396574,1722103840121,-500.0,0.00010999,2]
[333396576,1722103840131,-370.25,0.00010999,2]
[333396578,1722103840140,-198.46288851,0.00010999,2]
[333396580,1722103840152,-301.53711149,0.00010999,2]
[333396582,1722103840160,-91.31829377,0.00010999,2]
[333396584,1722103840173,-408.68170623,0.00010999,2]
[333396603,1722103840352,-340.99,0.00010999,2]
[333396605,1722103840362,-500.0,0.00010999,2]
[333396607,1722103840371,-348.2,0.00010999,2]
[333396609,1722103840380,-551.8,0.00010999,2]
[333396611,1722103840389,-500.0,0.00010999,2]
[333396613,1722103840398,-500.0,0.00010999,2]
[333396615,1722103840407,-141.71894745,0.00010999,2]
[333396618,1722103840427,-458.41105255,0.00010999,2]
[333396619,1722103840436,-500.0,0.00010999,2]
[333396621,1722103840445,-267.52542275,0.00010999,2]
[333396624,1722103840456,-232.47457725,0.00010999,2]
[333396625,1722103840466,-568.01,0.00010999,2]
[333396627,1722103840475,-500.0,0.00010999,2]
[333396629,1722103840484,-247.85849877,0.00010999,2]
[333396631,1722103840495,-165.59150123,0.00010999,2]
[333396633,1722103840504,-344.14710568,0.00010999,2]
[333396635,1722103840515,-223.86289432,0.00010999,2]
[333396637,1722103840524,-425.15710568,0.00010999,2]
[333396639,1722103840535,-142.85289432,0.00010999,2]
[333396640,1722103840545,-568.01,0.00010999,2]
[333396641,1722103840555,-568.01,0.00010999,2]
[333396642,1722103840564,-568.01,0.00010999,2]
[333396643,1722103840573,-568.01,0.00010999,2]
[333396644,1722103840582,-568.01,0.00010999,2]
[333396645,1722103840591,-568.01,0.00010999,2]
[333396646,1722103840601,-568.01,0.00010999,2]
[333396647,1722103840611,-568.01,0.00010999,2]
[333396648,1722103840620,-568.01,0.00010999,2]
[333396649,1722103840630,-568.01,0.00010999,2]
[333396650,1722103840639,-568.01,0.00010999,2]
[333396651,1722103840648,-568.01,0.00010999,2]
[333396652,1722103840659,-568.01,0.00010999,2]
[333396653,1722103840673,-568.01,0.00010999,2]
[333396654,1722103840682,-568.01,0.00010999,2]
[333396655,1722103840692,-568.01,0.00010999,2]
[333396656,1722103840704,-568.01,0.00010999,2]
[333396657,1722103840715,-568.01,0.00010999,2]
[333396658,1722103840724,-568.01,0.00010999,2]
[333396659,1722103840735,-568.01,0.00010999,2]
[333396660,1722103840744,-568.15,0.00010999,2]
[333396661,1722103840754,-500.0,0.00010999,2]
[333396662,1722103840765,-506.14,0.00010999,2]
[333396663,1722103840775,-500.0,0.00010999,2]
[333396664,1722103840785,-500.0,0.00010999,2]
[333396665,1722103840795,-500.0,0.00010999,2]
[333396666,1722103840806,-278.94,0.00010999,2]
[333396667,1722103840817,-500.0,0.00010999,2]
[333396668,1722103840827,-500.0,0.00010999,2]
[333396669,1722103840836,-500.0,0.00010999,2]
[333396670,1722103840846,-500.0,0.00010999,2]
[333396671,1722103840855,-500.0,0.00010999,2]
[333396672,1722103840865,-500.0,0.00010999,2]
[333396673,1722103840874,-500.0,0.00010999,2]
[333396674,1722103840883,-500.0,0.00010999,2]
[333396675,1722103840892,-500.0,0.00010999,2]
[333396676,1722103840902,-244.01,0.00010999,2]
[333396677,1722103840911,-500.0,0.00010999,2]
[333396678,1722103840920,-500.0,0.00010999,2]
[333396679,1722103840929,-500.0,0.00010999,2]
[333396680,1722103840939,-204.16,0.00010999,2]
[333396681,1722103840948,-500.0,0.00010999,2]
[333396682,1722103840957,-500.0,0.00010999,2]
[333396683,1722103840967,-255.73,0.00010999,2]
[333396684,1722103840976,-500.0,0.00010999,2]
[333396685,1722103840985,-500.0,0.00010999,2]
[333396686,1722103840994,-500.0,0.00010999,2]
[333396687,1722103841003,-220.08,0.00010999,2]
[333396688,1722103841012,-500.0,0.00010999,2]
[333396689,1722103841021,-500.0,0.00010999,2]
[333396690,1722103841030,-500.0,0.00010999,2]
[333396691,1722103841039,-500.0,0.00010999,2]
[333396692,1722103841049,-500.0,0.00010999,2]
[333396693,1722103841058,-500.0,0.00010999,2]
[333396694,1722103841067,-616.06883996,0.00010999,2]
[333396695,1722103841076,-500.0,0.00010999,2]
[333396696,1722103841086,-155.12,0.00010999,2]
[333396697,1722103841095,-372.95425602,0.00010999,2]
[333396698,1722103841104,-626.42,0.00010999,2]
[333396699,1722103841113,-500.0,0.00010999,2]
[333396700,1722103841122,-621.62,0.00010999,2]
[333396701,1722103841131,-587.79,0.00010999,2]
[333396702,1722103841141,-500.0,0.00010999,2]
[333396703,1722103841150,-559.16,0.00010999,2]
[333396704,1722103841160,-500.0,0.00010999,2]
[333396705,1722103841171,-500.0,0.00010999,2]
[333396706,1722103841180,-500.0,0.00010999,2]
[333396707,1722103841189,-500.0,0.00010999,2]
[333396708,1722103841198,-500.0,0.00010999,2]
[333396709,1722103841207,-500.0,0.00010999,2]
[333396710,1722103841216,-500.0,0.00010999,2]
[333396711,1722103841225,-178.15,0.00010999,2]
[333396712,1722103841234,-500.0,0.00010999,2]
[333396713,1722103841243,-500.0,0.00010999,2]
[333396714,1722103841253,-500.0,0.00010999,2]
[333396715,1722103841262,-392.76,0.00010999,2]
[333396716,1722103841271,-500.0,0.00010999,2]
[333396717,1722103841281,-500.0,0.00010999,2]
[333396718,1722103841290,-500.0,0.00010999,2]
[333396719,1722103841299,-500.0,0.00010999,2]
[333396720,1722103841309,-500.0,0.00010999,2]
[333396721,1722103841318,-546.37,0.00010999,2]
[333396722,1722103841327,-500.0,0.00010999,2]
[333396723,1722103841337,-500.0,0.00010999,2]
[333396724,1722103841346,-500.0,0.00010999,2]
[333396725,1722103841355,-500.0,0.00010999,2]
[333396726,1722103841364,-518.46,0.00010999,2]
[333396727,1722103841374,-500.0,0.00010999,2]
[333396728,1722103841383,-163.94,0.00010999,2]
[333396729,1722103841392,-404.43,0.00010999,2]
[333396730,1722103841402,-500.0,0.00010999,2]
[333396731,1722103841411,-500.0,0.00010999,2]
[333396732,1722103841421,-500.0,0.00010999,2]
[333396733,1722103841430,-500.0,0.00010999,2]
[333396734,1722103841439,-500.0,0.00010999,2]
[333396735,1722103841448,-500.0,0.00010999,2]
[333396736,1722103841457,-500.0,0.00010999,2]
[333396737,1722103841466,-500.0,0.00010999,2]
[333396738,1722103841475,-500.0,0.00010999,2]
[333396739,1722103841485,-500.0,0.00010999,2]
[333396740,1722103841494,-500.0,0.00010999,2]
[333396741,1722103841503,-493.9,0.00010999,2]
[333396742,1722103841512,-524.75,0.00010999,2]
[333396743,1722103841521,-500.0,0.00010999,2]
[333396744,1722103841530,-500.0,0.00010999,2]
[333396745,1722103841540,-500.0,0.00010999,2]
[333396746,1722103841550,-500.0,0.00010999,2]
[333396747,1722103841560,-500.0,0.00010999,2]
[333396748,1722103841572,-500.0,0.00010999,2]
[333396749,1722103841582,-500.0,0.00010999,2]
[333396750,1722103841592,-500.0,0.00010999,2]
[333396751,1722103841602,-500.0,0.00010999,2]
[333396752,1722103841612,-500.0,0.00010999,2]
[333396753,1722103841622,-500.0,0.00010999,2]
[333396754,1722103841631,-500.0,0.00010999,2]
[333396755,1722103841642,-500.0,0.00010999,2]
[333396756,1722103841651,-500.0,0.00010999,2]
[333396757,1722103841664,-500.0,0.00010999,2]
[333396758,1722103841676,-500.0,0.00010999,2]
[333396759,1722103841685,-372.62,0.00010999,2]
[333396760,1722103841695,-500.0,0.00010999,2]
[333396761,1722103841705,-500.0,0.00010999,2]
[333396762,1722103841715,-500.0,0.00010999,2]
[333396763,1722103841726,-500.0,0.00010999,2]
[333396764,1722103841735,-500.0,0.00010999,2]
[333396765,1722103841748,-596.33,0.00010999,2]
[333396766,1722103841757,-500.0,0.00010999,2]
[333396767,1722103841767,-500.0,0.00010999,2]
[333396768,1722103841777,-285.58,0.00010999,2]
[333396769,1722103841786,-500.0,0.00010999,2]
[333396770,1722103841796,-500.0,0.00010999,2]
[333396771,1722103841806,-500.0,0.00010999,2]
[333396772,1722103841816,-500.0,0.00010999,2]
[333396773,1722103841825,-500.0,0.00010999,2]
[333396774,1722103841834,-500.0,0.00010999,2]
[333396775,1722103841844,-500.0,0.00010999,2]
[333396776,1722103841853,-500.0,0.00010999,2]
[333396777,1722103841862,-500.0,0.00010999,2]
[333396778,1722103841871,-500.0,0.00010999,2]
[333396779,1722103841881,-500.0,0.00010999,2]
[333396780,1722103841890,-500.0,0.00010999,2]
[333396781,1722103841899,-500.0,0.00010999,2]
[333396782,1722103841909,-500.0,0.00010999,2]
[333396783,1722103841918,-500.0,0.00010999,2]
[333396784,1722103841933,-500.0,0.00010999,2]
[333396785,1722103841943,-500.0,0.00010999,2]
[333396786,1722103841952,-283.94168983,0.00010999,2]
[333396787,1722103841962,-500.0,0.00010999,2]
[333396788,1722103841971,-411.87,0.00010999,2]
[333396789,1722103841981,-500.0,0.00010999,2]
[333396790,1722103841990,-500.0,0.00010999,2]
[333396791,1722103842000,-500.0,0.00010999,2]
[333396792,1722103842009,-500.0,0.00010999,2]
[333396793,1722103842018,-500.0,0.00010999,2]
[333396794,1722103842028,-500.0,0.00010999,2]
[333396795,1722103842037,-500.0,0.00010999,2]
[333396796,1722103842046,-500.0,0.00010999,2]
[333396797,1722103842055,-228.96,0.00010999,2]
[333396798,1722103842064,-500.0,0.00010999,2]
[333396799,1722103842074,-500.0,0.00010999,2]
[333396800,1722103842083,-500.0,0.00010999,2]
[333396801,1722103842092,-500.0,0.00010999,2]
[333396802,1722103842102,-500.0,0.00010999,2]
[333396803,1722103842111,-500.0,0.00010999,2]
[333396804,1722103842120,-500.0,0.00010999,2]
[333396805,1722103842129,-500.0,0.00010999,2]
[333396806,1722103842139,-500.0,0.00010999,2]
[333396807,1722103842148,-420.16,0.00010999,2]
[333396808,1722103842157,-500.0,0.00010999,2]
[333396809,1722103842167,-500.0,0.00010999,2]
[333396810,1722103842179,-500.0,0.00010999,2]
[333396811,1722103842188,-500.0,0.00010999,2]
[333396812,1722103842197,-640.49884745,0.00010999,2]
[333396813,1722103842206,-172.45,0.00010999,2]
[333396814,1722103842216,-500.0,0.00010999,2]
[333396815,1722103842226,-500.0,0.00010999,2]
[333396816,1722103842237,-500.0,0.00010999,2]
[333396817,1722103842247,-500.0,0.00010999,2]
[333396818,1722103842257,-500.0,0.00010999,2]
[333396819,1722103842266,-254.5,0.00010999,2]
[333396820,1722103842275,-500.0,0.00010999,2]
[333396821,1722103842287,-500.0,0.00010999,2]
[333396822,1722103842299,-318.81,0.00010999,2]
[333396823,1722103842309,-500.0,0.00010999,2]
[333396824,1722103842319,-500.0,0.00010999,2]
[333396825,1722103842328,-500.0,0.00010999,2]
[333396826,1722103842339,-500.0,0.00010999,2]
[333396827,1722103842350,-500.0,0.00010999,2]
[333396828,1722103842359,-500.0,0.00010999,2]
[333396829,1722103842371,-500.0,0.00010999,2]
[333396830,1722103842381,-500.0,0.00010999,2]
[333396831,1722103842391,-500.0,0.00010999,2]
[333396833,1722103842400,-500.0,0.00010999,2]
[333396834,1722103842410,-500.0,0.00010999,2]
[333396835,1722103842420,-500.0,0.00010999,2]
[333396836,1722103842431,-500.0,0.00010999,2]
[333396837,1722103842441,-500.0,0.00010999,2]
[333396838,1722103842452,-500.0,0.00010999,2]
[333396839,1722103842463,-620.35,0.00010999,2]
[333396840,1722103842473,-500.0,0.00010999,2]
[333396841,1722103842485,-486.2,0.00010999,2]
[333396842,1722103842495,-500.0,0.00010999,2]
[333396843,1722103842505,-567.71,0.00010999,2]
[333396844,1722103842515,-230.37487242,0.00010999,2]
[333396845,1722103842524,-500.0,0.00010999,2]
[333396846,1722103842534,-500.0,0.00010999,2]
[333396847,1722103842545,-504.28,0.00010999,2]
[333396848,1722103842556,-500.0,0.00010999,2]
[333396849,1722103842566,-500.0,0.00010999,2]
[333396850,1722103842576,-500.0,0.00010999,2]
[333396851,1722103842585,-500.0,0.00010999,2]
[333396852,1722103842595,-500.0,0.00010999,2]
[333396853,1722103842604,-500.0,0.00010999,2]
[333396854,1722103842613,-500.0,0.00010999,2]
[333396855,1722103842622,-500.0,0.00010999,2]
[333396856,1722103842631,-271.74,0.00010999,2]
[333396857,1722103842640,-500.0,0.00010999,2]
[333396858,1722103842649,-500.0,0.00010999,2]
[333396860,1722103842662,-640.84,0.00010999,2]
[333396862,1722103842672,-500.0,0.00010999,2]
[333396863,1722103842681,-500.0,0.00010999,2]
[333396864,1722103842690,-326.85,0.00010999,2]
[333396865,1722103842699,-260.01,0.00010999,2]
[333396866,1722103842708,-250.33,0.00010999,2]
[333396867,1722103842719,-500.0,0.00010999,2]
[333396868,1722103842730,-500.0,0.00010999,2]
[333396869,1722103842740,-500.0,0.00010999,2]
[333396870,1722103842749,-500.0,0.00010999,2]
[333396871,1722103842759,-500.0,0.00010999,2]
[333396872,1722103842768,-500.0,0.00010999,2]
[333396873,1722103842777,-500.0,0.00010999,2]